bitfinex/quotes_BTCUSD_20250814
["timestamp","ask_amount","ask_price","bid_price","bid_amount"]
[1755152199189,0.09777479,121590.0,121580.0,0.47192]
[1755152199399,0.09777479,121590.0,121580.0,0.13192]
[1755152201351,0.10787327,121590.0,121580.0,0.004]
[1755152201610,0.10098479,121590.0,121580.0,0.004]
[1755152201875,0.10098479,121590.0,121580.0,0.13188]
[1755152202318,0.09777479,121590.0,121580.0,0.13188]
[1755152202582,0.09777479,121590.0,121580.0,0.13088]
[1755152202812,0.09977479,121590.0,121580.0,0.29538074]
[1755152203013,0.10177479,121590.0,121580.0,0.29861074]
[1755152205004,0.10177479,121590.0,121580.0,0.59821074]
[1755152205447,0.10177479,121590.0,121580.0,0.47033074]
[1755152205670,0.10177479,121590.0,121580.0,0.59817074]
[1755152206334,0.10177479,121590.0,121580.0,0.36785074]
[1755152206553,0.10177479,121590.0,121580.0,0.29853074]
[1755152207228,0.10177479,121590.0,121580.0,0.003]
[1755152207506,0.10498479,121590.0,121580.0,0.13076]
[1755152207736,0.10498479,121590.0,121580.0,0.29526074]
[1755152207939,0.10177479,121590.0,121580.0,0.29526074]
[1755152208146,0.10177479,121590.0,121580.0,0.16750074]
[1755152208566,0.10177479,121590.0,121580.0,0.29534074]
[1755152209603,0.10498479,121590.0,121580.0,0.13088]
[1755152210350,0.64842548,121590.0,121580.0,0.003]
[1755152210561,0.58947771,121590.0,121580.0,0.003]
[1755152210780,0.10498479,121590.0,121580.0,0.13084]
[1755152212831,0.10498479,121590.0,121580.0,0.003]
[1755152213101,0.10177479,121590.0,121580.0,0.003]
[1755152213294,0.10498479,121590.0,121580.0,0.003]
[1755152213498,0.10498479,121590.0,121580.0,0.13084]
[1755152213900,0.64939512,121590.0,121580.0,0.13084]
[1755152215003,0.58947771,121590.0,121580.0,0.43052]
[1755152215448,0.58947771,121590.0,121580.0,0.30268]
[1755152215649,0.58947771,121590.0,121580.0,0.43052]
[1755152215838,0.58947771,121590.0,121580.0,0.43048]
[1755152217179,0.59156771,121590.0,121580.0,0.43048]
[1755152217593,0.58956771,121590.0,121580.0,0.43048]
[1755152218001,0.59156771,121590.0,121580.0,0.43048]
[1755152218534,0.58956771,121590.0,121580.0,0.43048]
[1755152218737,0.59156771,121590.0,121580.0,0.43048]
[1755152219103,0.58956771,121590.0,121580.0,0.43048]
[1755152220158,0.59056771,121590.0,121580.0,0.43048]
[1755152220443,0.58956771,121590.0,121580.0,0.4304]
[1755152220586,0.10707479,121590.0,121580.0,0.4304]
[1755152220992,0.10707479,121590.0,121580.0,0.4284]
[1755152224220,0.10386479,121590.0,121580.0,0.43053]
[1755152224416,0.10386479,121590.0,121580.0,0.43049]
[1755152224618,0.10386479,121590.0,121580.0,0.43053]
[1755152225871,0.10177479,121590.0,121580.0,0.30281]
[1755152226089,0.10177479,121590.0,121580.0,0.43053]
[1755152226540,0.08672325,121590.0,121580.0,0.59804074]
[1755152226744,0.08672325,121590.0,121580.0,0.59800074]
[1755152228258,0.10177479,121590.0,121580.0,0.59800074]
[1755152228882,0.10177479,121590.0,121580.0,0.60744326]
[1755152229287,0.10177479,121590.0,121580.0,0.59800074]
[1755152230934,0.10177479,121590.0,121580.0,0.47032074]
[1755152231127,0.10177479,121590.0,121580.0,0.59788074]
[1755152231128,0.08672325,121590.0,121580.0,0.59788074]
[1755152231335,0.08672325,121590.0,121580.0,0.6714899]
[1755152232213,0.08472325,121590.0,121580.0,0.6714899]
[1755152232343,0.08572325,121590.0,121580.0,0.6714899]
[1755152232555,0.08572325,121590.0,121580.0,0.68127785]
[1755152232879,0.08372325,121590.0,121580.0,0.68127785]
[1755152233250,0.08372325,121590.0,121580.0,0.6714899]
[1755152233668,0.08372325,121590.0,121580.0,0.5689699]
[1755152235103,0.08372325,121590.0,121580.0,0.6714899]
[1755152235316,0.001,121590.0,121580.0,0.9329599]
[1755152235514,0.1183675,121650.0,121580.0,1.08997394]
[1755152235712,0.08272325,121640.0,121630.0,0.16443297]
[1755152235936,0.08473325,121640.0,121630.0,0.49116297]
[1755152236136,0.08473325,121640.0,121630.0,0.32468]
[1755152236480,0.08775325,121640.0,121630.0,0.32468]
[1755152237641,0.57224617,121640.0,121630.0,0.3246]
[1755152237912,0.58938216,121640.0,121630.0,0.3246]
[1755152238141,0.08975325,121640.0,121630.0,0.3246]
[1755152238257,0.57424617,121640.0,121630.0,0.3246]
[1755152239467,0.57624617,121640.0,121630.0,0.3246]
[1755152239647,0.6148357,121640.0,121630.0,0.19716]
[1755152239846,0.6148357,121640.0,121630.0,0.32456]
[1755152239995,0.57624617,121640.0,121630.0,0.32456]
[1755152240491,0.91624617,121640.0,121630.0,0.19712]
[1755152240716,0.93134516,121640.0,121630.0,0.19712]
[1755152240897,0.93134516,121640.0,121590.0,0.25795044]
[1755152241245,0.56721617,121620.0,121590.0,0.25795044]
[1755152241453,0.48449292,121610.0,121590.0,0.25795044]
[1755152241654,0.08272325,121600.0,121590.0,0.25795044]
[1755152241881,0.08272325,121600.0,121590.0,0.13246]
[1755152242116,0.08473325,121600.0,121590.0,0.00205]
[1755152242547,0.08272325,121600.0,121590.0,0.00606]
[1755152242760,0.08272325,121600.0,121590.0,0.13346]
[1755152242975,0.08473325,121600.0,121590.0,0.00205]
[1755152243188,0.09350857,121600.0,121590.0,0.1284]
[1755152243407,0.08573325,121600.0,121590.0,0.1274]
[1755152243613,0.08573325,121600.0,121590.0,0.12945]
[1755152243827,0.08572325,121600.0,121590.0,0.29393721]
[1755152244034,0.08572325,121600.0,121590.0,0.29690721]
[1755152245123,0.08572325,121600.0,121590.0,0.43202]
[1755152245349,0.08773325,121600.0,121590.0,0.30165]
[1755152245561,0.09075325,121600.0,121590.0,0.2996]
[1755152245788,0.08572325,121600.0,121590.0,0.46613721]
[1755152245971,0.08572325,121600.0,121590.0,0.46914721]
[1755152246526,0.08572325,121600.0,121590.0,0.30466]
[1755152246897,0.08572325,121600.0,121590.0,0.59678721]
[1755152247216,0.08572325,121600.0,121590.0,0.49430721]
[1755152248150,0.08572325,121600.0,121590.0,0.83426721]
[1755152248357,0.003,121600.0,121590.0,0.88329721]
[1755152248558,0.003,121600.0,121590.0,0.75990754]
[1755152248756,0.003,121600.0,121590.0,0.63230754]
[1755152248962,0.003,121600.0,121590.0,0.75994754]
[1755152249223,0.002,121600.0,121590.0,0.75994754]
[1755152249427,0.08472325,121600.0,121590.0,0.75994754]
[1755152249637,0.08272325,121600.0,121590.0,0.71091754]
[1755152249859,0.09149558,121600.0,121590.0,0.36790754]
[1755152250059,0.08272325,121600.0,121590.0,0.29718721]
[1755152250269,0.08473325,121600.0,121590.0,0.12969]
[1755152250493,0.08775325,121600.0,121590.0,0.12864]
[1755152250664,0.08775325,121600.0,121590.0,0.12964]
[1755152250886,0.34975325,121600.0,121590.0,0.12964]
[1755152251094,0.08473325,121600.0,121590.0,0.12864]
[1755152251631,0.62977079,121600.0,121590.0,0.12864]
[1755152252080,0.14527787,121600.0,121590.0,0.12764]
[1755152252238,0.08555325,121600.0,121590.0,0.12764]
[1755152253672,0.08555325,121600.0,121590.0,0.12768]
[1755152254276,0.08253325,121600.0,121590.0,0.12768]
[1755152254458,0.08253325,121600.0,121590.0,0.12973]
[1755152255079,0.08253325,121600.0,121590.0,0.59381721]
[1755152255285,0.08052325,121600.0,121590.0,0.59682721]
[1755152258323,0.08052325,121600.0,121590.0,0.59678721]
[1755152258499,0.08052325,121600.0,121590.0,0.59682721]
[1755152259957,0.08052325,121600.0,121590.0,0.59678721]
[1755152260377,0.08052325,121600.0,121590.0,0.56803754]
[1755152261976,0.08052325,121600.0,121590.0,0.44139754]
[1755152262404,0.08258325,121600.0,121590.0,0.56598754]
[1755152262552,0.08258325,121600.0,121590.0,0.36886754]
[1755152262753,0.08258325,121600.0,121590.0,0.07573033]
[1755152262987,0.57009617,121600.0,121590.0,0.1276]
[1755152263196,0.08560325,121600.0,121590.0,0.1276]
[1755152263395,0.62740579,121600.0,121590.0,0.002]
[1755152263598,0.62740579,121600.0,121590.0,0.1296]
[1755152264034,0.14291287,121600.0,121590.0,0.12964]
[1755152264232,0.08258325,121600.0,121590.0,0.12864]
[1755152264441,0.08258325,121600.0,121590.0,0.13079]
[1755152264817,0.08560325,121600.0,121590.0,0.12764]
[1755152264995,0.08560325,121600.0,121590.0,0.42724]
[1755152265202,0.08660325,121600.0,121590.0,0.42724]
[1755152265462,0.08660325,121600.0,121590.0,0.42732]
[1755152265622,0.08760325,121600.0,121590.0,0.42732]
[1755152266796,0.08760325,121600.0,121590.0,0.2996]
[1755152266924,0.08458325,121600.0,121590.0,0.42732]
[1755152267131,0.08458325,121600.0,121590.0,0.2996]
[1755152267339,0.08760325,121600.0,121590.0,0.42728]
[1755152269041,0.62438535,121600.0,121590.0,0.2996]
[1755152269199,0.62438535,121600.0,121590.0,0.42724]
[1755152270421,0.62438535,121600.0,121590.0,0.2996]
[1755152270598,1.10887827,121600.0,121590.0,0.19712]
[1755152270816,1.44887827,121600.0,121590.0,0.19712]
[1755152271017,0.82449292,121590.0,121570.0,0.103]
[1755152271195,0.56927617,121580.0,121570.0,0.103]
[1755152271560,0.57229617,121580.0,121570.0,0.23084]
[1755152272047,0.58179492,121580.0,121570.0,0.23084]
[1755152272279,0.58179492,121580.0,121570.0,0.103]
[1755152272484,1.36279492,121580.0,121570.0,0.01849717]
[1755152272616,1.44527935,121580.0,121530.0,0.1759502]
[1755152272822,0.08272325,121550.0,121530.0,0.5159502]
[1755152273028,0.262,121540.0,121530.0,0.5159502]
[1755152273233,0.34472325,121540.0,121530.0,0.6459002]
[1755152274495,0.34472325,121540.0,121530.0,0.6499002]
[1755152275048,0.34472325,121540.0,121530.0,0.9495802]
[1755152275254,0.34472325,121540.0,121530.0,0.9525802]
[1755152275667,0.34472325,121540.0,121530.0,0.9524602]
[1755152275875,0.34472325,121540.0,121530.0,0.9494602]
[1755152276078,0.34472325,121540.0,121530.0,0.9524602]
[1755152276796,0.34472325,121540.0,121530.0,0.7222602]
[1755152276969,0.34472325,121540.0,121530.0,0.8499802]
[1755152277299,0.08272325,121540.0,121530.0,0.8499802]
[1755152277506,0.08272325,121540.0,121530.0,0.7222602]
[1755152277680,0.08272325,121540.0,121530.0,0.2095]
[1755152277875,0.08478325,121540.0,121530.0,0.49851841]
[1755152278122,0.08272325,121540.0,121530.0,0.49851841]
[1755152278313,0.08272325,121540.0,121530.0,0.50170841]
[1755152278509,0.08272325,121540.0,121530.0,0.2095]
[1755152278711,0.08478325,121540.0,121530.0,0.33395]
[1755152278909,0.08478325,121540.0,121530.0,0.49851841]
[1755152279183,0.08272325,121540.0,121530.0,0.49870841]
[1755152279654,0.08272325,121540.0,121530.0,0.50070841]
[1755152281276,0.08272325,121540.0,121530.0,0.49670841]
[1755152281663,0.08272325,121540.0,121530.0,0.49870841]
[1755152281891,0.08272325,121540.0,121530.0,0.49862841]
[1755152282272,0.09305558,121540.0,121530.0,0.49543841]
[1755152282474,0.09305558,121540.0,121530.0,0.17071841]
[1755152282639,0.09305558,121540.0,121530.0,0.49547841]
[1755152283023,0.08478325,121540.0,121530.0,0.49547841]
[1755152284570,0.08478325,121540.0,121530.0,0.49555841]
[1755152285115,0.08478325,121540.0,121530.0,0.59807841]
[1755152285511,0.08478325,121540.0,121530.0,0.46828841]
[1755152285713,0.08780325,121540.0,121530.0,0.59588841]
[1755152286401,0.08478325,121540.0,121530.0,0.59796841]
[1755152286616,0.08478325,121540.0,121530.0,0.59788841]
[1755152287149,0.08478325,121540.0,121530.0,0.47036841]
[1755152287261,0.08478325,121540.0,121530.0,0.59788841]
[1755152289152,0.08478325,121540.0,121530.0,0.59784841]
[1755152289379,0.58050682,121540.0,121530.0,0.43328]
[1755152289523,0.64358382,121540.0,121530.0,0.4312]
[1755152289723,0.58370682,121540.0,121530.0,0.4312]
[1755152289923,0.58370682,121540.0,121530.0,0.30372]
[1755152290207,0.58370682,121540.0,121530.0,0.4312]
[1755152290415,0.59877231,121540.0,121530.0,0.4512]
[1755152290592,0.59877231,121540.0,121530.0,0.32372]
[1755152290727,0.65864954,121540.0,121530.0,0.32372]
[1755152290934,0.65864954,121540.0,121530.0,0.4512]
[1755152292141,0.65864954,121540.0,121530.0,0.4492]
[1755152292356,0.59877231,121540.0,121530.0,0.4492]
[1755152292557,0.59877231,121540.0,121530.0,0.4472]
[1755152292802,0.59877231,121540.0,121530.0,0.4482]
[1755152293015,0.59877231,121540.0,121530.0,0.4492]
[1755152293281,0.65864954,121540.0,121530.0,0.4492]
[1755152293494,0.65864954,121540.0,121530.0,0.32172]
[1755152293870,0.65864954,121540.0,121530.0,0.44908]
[1755152294293,0.65864954,121540.0,121530.0,0.12452]
[1755152294541,0.65864954,121540.0,121530.0,0.44908]
[1755152294968,0.65864954,121540.0,121530.0,0.44904]
[1755152295373,0.65864954,121540.0,121530.0,0.32172]
[1755152295585,0.65864954,121540.0,121530.0,0.44904]
[1755152296209,0.16292597,121540.0,121530.0,0.44904]
[1755152296422,0.10304874,121540.0,121530.0,0.44904]
[1755152296627,0.59877231,121540.0,121530.0,0.44904]
[1755152297053,0.59877231,121540.0,121530.0,0.44908]
[1755152297590,0.59877231,121540.0,121530.0,0.12452]
[1755152297804,0.59877231,121540.0,121530.0,0.32176]
[1755152298016,0.59877231,121540.0,121530.0,0.44904]
[1755152298223,0.65864954,121540.0,121530.0,0.32176]
[1755152298425,0.65864954,121540.0,121530.0,0.44904]
[1755152298602,0.65864954,121540.0,121530.0,0.32667993]
[1755152298834,0.65864954,121540.0,121530.0,0.19724]
[1755152299034,0.65864954,121540.0,121510.0,0.07347624]
[1755152299242,0.07700272,121540.0,121530.0,0.19724]
[1755152299445,0.09984874,121540.0,121510.0,0.07347624]
[1755152299650,0.08272325,121520.0,121510.0,0.07347624]
[1755152299860,0.09982874,121520.0,121510.0,0.07347624]
[1755152300085,0.10302874,121520.0,121510.0,0.20075624]
[1755152300494,0.59875231,121520.0,121510.0,0.20075624]
[1755152302017,0.63519721,121520.0,121510.0,0.20075624]
[1755152305045,0.63519721,121520.0,121510.0,0.50055624]
[1755152305661,1.13092078,121520.0,121510.0,0.50055624]
[1755152306589,0.63519721,121520.0,121510.0,0.17603624]
[1755152306788,0.63519721,121520.0,121510.0,0.50055624]
[1755152306990,0.70760595,121520.0,121510.0,0.50055624]
[1755152307209,0.70760595,121520.0,121510.0,0.17603624]
[1755152307409,0.70760595,121520.0,121510.0,0.50055624]
[1755152308231,1.20332952,121520.0,121510.0,0.50155624]
[1755152308439,1.56832952,121520.0,121510.0,0.19724]
[1755152308667,1.54332952,121520.0,121510.0,0.19728]
[1755152308890,1.54332952,121520.0,121510.0,0.32456]
[1755152309314,1.54332952,121520.0,121500.0,0.03687101]
[1755152309521,0.9616827,121520.0,121510.0,0.19728]
[1755152309676,1.54012952,121520.0,121510.0,0.19728]
[1755152309910,1.54012952,121520.0,121500.0,0.03687101]
[1755152310232,0.58164682,121510.0,121500.0,0.03687101]
[1755152310432,0.68123674,121510.0,121500.0,0.03687101]
[1755152310636,0.68123674,121510.0,121500.0,0.16411101]
[1755152311993,0.68123674,121510.0,121500.0,0.16415101]
[1755152312206,0.68423674,121510.0,121500.0,0.16415101]
[1755152313248,0.68423674,121510.0,121490.0,0.0058236]
[1755152313249,0.34,121500.0,121490.0,0.0058236]
[1755152313495,1.02123674,121500.0,121490.0,0.1330236]
[1755152313690,1.02123674,121500.0,121490.0,0.12716]
[1755152314722,1.02223674,121500.0,121490.0,0.12716]
[1755152315129,1.02223674,121500.0,121490.0,0.19728]
[1755152315284,1.02223674,121500.0,121490.0,0.32444]
[1755152315285,1.54296031,121500.0,121490.0,0.32444]
[1755152315691,1.54294628,121500.0,121490.0,0.19728]
[1755152316239,1.04722271,121500.0,121480.0,0.02]
[1755152316491,0.91844682,121490.0,121480.0,0.02]
[1755152316663,1.02090271,121490.0,121480.0,0.02]
[1755152316910,1.72390271,121490.0,121480.0,0.14716]
[1755152317109,1.72389903,121490.0,121480.0,0.14716]
[1755152317551,1.72389903,121490.0,121480.0,0.02]
[1755152317773,1.72389903,121490.0,121480.0,0.14716]
[1755152317980,0.88325546,121490.0,121480.0,0.02513]
[1755152318185,1.37897903,121490.0,121480.0,0.15229]
[1755152318608,0.67597903,121490.0,121480.0,0.15229]
[1755152318784,0.67697903,121490.0,121480.0,0.15229]
[1755152319223,0.67797903,121490.0,121480.0,0.15229]
[1755152319764,0.09977103,121490.0,121480.0,0.57848615]
[1755152319993,0.49572357,121540.0,121510.0,0.00822977]
[1755152320207,0.08272325,121520.0,121510.0,0.17282406]
[1755152320428,0.08272325,121520.0,121510.0,0.30216406]
[1755152320637,0.08272325,121520.0,121510.0,0.30519406]
[1755152320842,0.57844682,121520.0,121510.0,0.17795406]
[1755152321156,0.08272325,121520.0,121510.0,0.30519406]
[1755152321407,0.08272325,121520.0,121510.0,0.13237]
[1755152321408,0.57844682,121520.0,121510.0,0.13237]
[1755152321610,0.08272325,121520.0,121510.0,0.2969655]
[1755152322302,0.08272325,121520.0,121510.0,0.13237]
[1755152322929,0.08272325,121520.0,121510.0,0.00613]
[1755152323141,0.08272325,121520.0,121510.0,0.2979655]
[1755152323802,0.09099558,121520.0,121510.0,0.13337]
[1755152324013,0.08272325,121520.0,121510.0,0.13333]
[1755152324446,0.08272325,121520.0,121510.0,0.2979255]
[1755152324683,0.08272325,121520.0,121510.0,0.13333]
[1755152325180,0.08272325,121520.0,121510.0,0.5978055]
[1755152325619,0.57727333,121520.0,121510.0,0.30298]
[1755152325846,0.57727333,121520.0,121510.0,0.43018]
[1755152326021,0.09099558,121520.0,121510.0,0.43018]
[1755152326216,0.08272325,121520.0,121510.0,0.43321]
[1755152326682,0.08469325,121520.0,121510.0,0.43014]
[1755152327121,0.571951,121520.0,121510.0,0.30088]
[1755152327331,0.63091087,121520.0,121510.0,0.4301]
[1755152327535,0.569001,121520.0,121510.0,0.42804]
[1755152327755,0.571951,121520.0,121510.0,0.42804]
[1755152328208,0.571951,121520.0,121500.0,0.10256]
[1755152328441,0.06879987,121520.0,121510.0,0.19728]
[1755152328701,0.571951,121520.0,121510.0,0.19728]
[1755152328917,0.959371,121520.0,121480.0,0.02303]
[1755152329120,0.08272325,121490.0,121480.0,0.02]
[1755152329407,0.08469325,121490.0,121480.0,0.14716]
[1755152329797,0.08469325,121490.0,121480.0,0.14926]
[1755152330007,0.08469325,121490.0,121480.0,0.0221]
[1755152330209,0.08469325,121490.0,121480.0,0.14926]
[1755152330622,0.08469325,121490.0,121480.0,0.0221]
[1755152330825,0.08272325,121490.0,121480.0,0.14926]
[1755152331031,0.08272325,121490.0,121480.0,0.15229]
[1755152331577,0.08272325,121490.0,121480.0,0.18976615]
[1755152331694,0.08272325,121490.0,121480.0,0.31478615]
[1755152331903,0.08472325,121490.0,121480.0,0.31474615]
[1755152332114,0.08272325,121490.0,121480.0,0.31474615]
[1755152332547,0.08372325,121490.0,121480.0,0.18766615]
[1755152332755,0.08272325,121490.0,121480.0,0.31474615]
[1755152333371,0.08272325,121490.0,121480.0,0.02303]
[1755152333572,0.09099558,121490.0,121480.0,0.15011]
[1755152333800,0.09099558,121490.0,121480.0,0.15015]
[1755152334486,0.08272325,121490.0,121480.0,0.15015]
[1755152334696,0.08272325,121490.0,121480.0,0.31688615]
[1755152335167,0.08272325,121490.0,121480.0,0.61676615]
[1755152337730,0.08272325,121490.0,121480.0,0.48964615]
[1755152337941,0.08272325,121490.0,121480.0,0.61676615]
[1755152338739,0.09296558,121490.0,121480.0,0.4491]
[1755152339018,0.57825333,121490.0,121480.0,0.31988]
[1755152339141,0.57825333,121490.0,121480.0,0.447]
[1755152340589,0.57825333,121490.0,121480.0,0.31988]
[1755152340767,0.57825333,121490.0,121480.0,0.43994527]
[1755152340917,0.69252104,121490.0,121480.0,0.43994527]
[1755152341119,0.69252104,121490.0,121480.0,0.44002527]
[1755152341318,0.69252104,121490.0,121480.0,0.44102527]
[1755152341557,0.69252104,121490.0,121480.0,0.44106527]
[1755152341789,1.03252104,121490.0,121480.0,0.44002527]
[1755152342204,1.03352104,121490.0,121480.0,0.44002527]
[1755152342402,0.96667333,121490.0,121480.0,0.44202527]
[1755152342621,0.96667333,121490.0,121480.0,0.44002527]
[1755152343049,0.96767333,121490.0,121480.0,0.44002527]
[1755152344302,0.96767333,121490.0,121480.0,0.31282527]
[1755152344641,0.98467948,121490.0,121480.0,0.43998527]
[1755152344866,0.97947948,121490.0,121480.0,0.43998527]
[1755152345071,0.97847948,121490.0,121480.0,0.43998527]
[1755152345305,0.97847948,121490.0,121480.0,0.31282527]
[1755152345524,1.00747948,121490.0,121480.0,0.43998527]
[1755152345936,1.00747948,121490.0,121480.0,0.30526986]
[1755152346151,1.18033321,121490.0,121460.0,0.0054247]
[1755152346354,0.567031,121470.0,121460.0,0.0054247]
[1755152346579,0.69155158,121470.0,121460.0,0.2027447]
[1755152346787,0.34,121460.0,121450.0,7e-05]
[1755152346996,0.92704715,121460.0,121450.0,0.19739]
[1755152347378,0.93608541,121460.0,121450.0,0.19739]
[1755152347524,0.93608541,121460.0,121450.0,0.32451]
[1755152347525,1.01356984,121460.0,121450.0,0.32451]
[1755152347765,1.02156984,121460.0,121450.0,7e-05]
[1755152347982,1.02156984,121460.0,121450.0,0.32455]
[1755152348297,1.02156984,121460.0,121450.0,0.19743]
[1755152348498,0.53626209,121460.0,121450.0,0.32467]
[1755152348712,1.02056984,121460.0,121450.0,0.32467]
[1755152349517,1.02056984,121460.0,121450.0,0.19743]
[1755152349518,0.53626209,121460.0,121450.0,0.19743]
[1755152349769,0.53128209,121460.0,121450.0,0.32969]
[1755152349971,1.01758984,121460.0,121450.0,0.19743]
[1755152350180,1.05770216,121460.0,121450.0,0.19743]
[1755152350568,1.10561216,121460.0,121450.0,0.32479]
[1755152350798,1.10561216,121460.0,121450.0,0.19743]
[1755152351005,1.10561216,121460.0,121450.0,0.32479]
[1755152351223,1.13061216,121460.0,121450.0,0.32479]
[1755152351452,2.03254491,121460.0,121450.0,0.32479]
[1755152351646,2.03054491,121460.0,121450.0,0.32479]
[1755152352006,2.03154491,121460.0,121450.0,0.32479]
[1755152352206,2.04166525,121460.0,121440.0,0.12841322]
[1755152352409,1.14616646,121450.0,121440.0,0.12841322]
[1755152352608,1.24368704,121450.0,121440.0,0.12841322]
[1755152352856,0.75937929,121450.0,121440.0,0.12841322]
[1755152353493,0.27507154,121450.0,121440.0,0.25585322]
[1755152353690,0.69253158,121450.0,121440.0,0.12049452]
[1755152353892,0.69245272,121450.0,121440.0,0.12049452]
[1755152354302,0.69245272,121450.0,121440.0,0.24793452]
[1755152354504,0.69445272,121450.0,121440.0,0.24793452]
[1755152355073,0.69445272,121450.0,121440.0,0.44537452]
[1755152355308,0.21014497,121450.0,121440.0,0.44537452]
[1755152355525,0.69445272,121450.0,121440.0,0.44537452]
[1755152355883,0.68041657,121450.0,121440.0,0.44537452]
[1755152356089,0.69540273,121450.0,121440.0,0.44533452]
[1755152356491,1.17971048,121450.0,121440.0,0.44533452]
[1755152356877,1.3443858,121450.0,121440.0,0.44533452]
[1755152357083,1.17970898,121450.0,121440.0,0.44533452]
[1755152357384,1.58655669,121450.0,121440.0,0.44533452]
[1755152358249,1.10224894,121450.0,121440.0,0.44541452]
[1755152358472,0.61794119,121450.0,121440.0,0.44541452]
[1755152358649,1.10224894,121450.0,121440.0,0.44541452]
[1755152358872,1.03540123,121450.0,121440.0,0.3095323]
[1755152359086,1.03242123,121450.0,121440.0,0.4370923]
[1755152359319,1.03242123,121450.0,121440.0,0.3116223]
[1755152359537,0.52111348,121450.0,121440.0,0.3116223]
[1755152359750,0.52111348,121450.0,121440.0,0.4420723]
[1755152360176,1.00542123,121450.0,121440.0,0.4420723]
[1755152360399,1.00542123,121450.0,121440.0,0.3116223]
[1755152360400,1.00742123,121450.0,121440.0,0.3116223]
[1755152360606,1.00742123,121450.0,121440.0,0.4393423]
[1755152361029,1.01040123,121450.0,121440.0,0.3095323]
[1755152361238,1.51970898,121450.0,121440.0,0.4372923]
[1755152361468,1.51770898,121450.0,121440.0,0.3095323]
[1755152361666,1.7302958,121450.0,121440.0,0.42761406]
[1755152361880,1.73029172,121450.0,121440.0,0.4176698]
[1755152362085,1.73029172,121450.0,121440.0,0.2898698]
[1755152362292,1.73029172,121450.0,121440.0,0.28128159]
[1755152362509,1.73029172,121450.0,121440.0,0.27088532]
[1755152362748,0.16487203,121400.0,121390.0,0.10564]
[1755152362963,0.11419103,121400.0,121390.0,0.30304]
[1755152363180,0.60147878,121400.0,121390.0,0.43084]
[1755152363398,0.62647878,121400.0,121390.0,0.43084]
[1755152363614,0.62647878,121400.0,121390.0,0.30304]
[1755152363820,0.09770383,121400.0,121390.0,0.4308]
[1755152364281,0.09770383,121400.0,121390.0,0.30304]
[1755152364698,0.09770383,121400.0,121390.0,0.43088]
[1755152364903,0.58201158,121400.0,121390.0,0.43088]
[1755152365099,0.64021274,121400.0,121390.0,0.43088]
[1755152365340,0.64021274,121400.0,121390.0,0.30304]
[1755152365517,0.64319274,121400.0,121390.0,0.43096]
[1755152366813,0.64121274,121400.0,121390.0,0.30304]
[1755152367029,0.64121274,121400.0,121390.0,0.43096]
[1755152367233,0.64221274,121400.0,121390.0,0.43096]
[1755152367457,0.09970383,121400.0,121390.0,0.30304]
[1755152367669,0.09970383,121400.0,121390.0,0.43389]
[1755152368101,0.09970383,121400.0,121390.0,0.30597]
[1755152368310,0.09970383,121400.0,121390.0,0.47072821]
[1755152368524,0.09970383,121400.0,121390.0,0.59860821]
[1755152368736,0.09970383,121400.0,121390.0,0.81072821]
[1755152368941,0.09870383,121400.0,121390.0,0.93864821]
[1755152369392,0.09770383,121400.0,121390.0,0.83600821]
[1755152369599,0.09770383,121400.0,121390.0,0.51068821]
[1755152369808,0.10747421,121400.0,121390.0,0.47393]
[1755152370022,0.17432192,121400.0,121390.0,0.47493]
[1755152370230,0.17432192,121400.0,121390.0,0.47593]
[1755152370498,0.1743538,121400.0,121390.0,0.47593]
[1755152370729,0.1743538,121400.0,121390.0,0.13793]
[1755152370938,0.1743538,121400.0,121390.0,0.13593]
[1755152371563,0.1743538,121400.0,121390.0,0.133]
[1755152371770,0.65866155,121400.0,121390.0,0.13096]
[1755152372604,0.64889117,121400.0,121380.0,0.20408379]
[1755152372818,0.08272325,121390.0,121380.0,0.20115379]
[1755152373031,0.58204346,121390.0,121380.0,0.20115379]
[1755152373205,0.09773571,121390.0,121380.0,0.20115379]
[1755152373344,0.09774831,121390.0,121380.0,0.20115379]
[1755152373580,0.09774831,121390.0,121380.0,0.36885558]
[1755152373828,0.09774831,121390.0,121380.0,0.49677558]
[1755152374053,0.09774831,121390.0,121380.0,0.83777558]
[1755152374987,0.09774831,121390.0,121380.0,1.13793558]
[1755152375186,0.09774831,121390.0,121380.0,1.01001558]
[1755152375397,0.09774831,121390.0,121380.0,1.13789558]
[1755152375603,0.09774831,121390.0,121380.0,1.00901558]
[1755152375822,0.10752314,121390.0,121380.0,1.13689558]
[1755152376251,0.09774831,121390.0,121380.0,1.03621558]
[1755152376741,0.09774831,121390.0,121380.0,1.03821558]
[1755152376925,0.09774831,121390.0,121380.0,1.03621558]
[1755152377127,0.09776397,121390.0,121380.0,1.03421558]
[1755152377559,0.09776397,121390.0,121380.0,0.90933558]
[1755152377711,0.09776397,121390.0,121380.0,1.03721558]
[1755152377914,0.08272325,121390.0,121380.0,1.03721558]
[1755152378154,0.08272325,121390.0,121380.0,0.90933558]
[1755152378540,0.08272325,121390.0,121380.0,1.03725558]
[1755152378746,0.08272325,121390.0,121380.0,0.84077558]
[1755152379154,0.08272325,121390.0,121380.0,0.71185558]
[1755152379358,0.08272325,121390.0,121380.0,0.83973558]
[1755152379570,0.08272325,121390.0,121380.0,0.83773558]
[1755152379976,0.08272325,121390.0,121380.0,0.83873558]
[1755152380734,0.09776853,121390.0,121380.0,0.83873558]
[1755152381154,0.09776853,121390.0,121380.0,0.71085558]
[1755152381524,0.08272325,121390.0,121380.0,0.83869558]
[1755152382003,0.09777008,121390.0,121380.0,0.83869558]
[1755152382213,0.09776951,121390.0,121380.0,0.71085558]
[1755152382368,0.09776951,121390.0,121380.0,0.83869558]
[1755152382580,0.09776951,121390.0,121380.0,0.71085558]
[1755152382791,0.08272325,121390.0,121380.0,0.83865558]
[1755152382987,0.09776908,121390.0,121380.0,0.83865558]
[1755152383873,0.09776908,121390.0,121380.0,0.71085558]
[1755152384080,0.09776908,121390.0,121380.0,0.83865558]
[1755152385044,0.09776908,121390.0,121380.0,1.13877558]
[1755152385822,0.01504819,121390.0,121380.0,1.01097558]
[1755152386019,0.01504819,121390.0,121380.0,1.13881558]
[1755152386259,0.01504819,121390.0,121380.0,1.01097558]
[1755152386444,0.09777144,121390.0,121380.0,1.13877558]
[1755152386652,0.09777144,121390.0,121380.0,1.03509558]
[1755152386855,0.09777144,121390.0,121380.0,1.04308237]
[1755152387056,0.09777144,121390.0,121380.0,1.04608237]
[1755152387462,0.09777144,121390.0,121380.0,1.04308237]
[1755152387746,0.09777144,121390.0,121380.0,1.04508237]
[1755152387945,0.09777191,121390.0,121380.0,1.04508237]
[1755152388179,0.09777191,121390.0,121380.0,1.04708237]